fUSD/lending_fUSD_20251201
["ID","MTS","AMOUNT","RATE_DAILY","PERIOD"]
[395303865,1764601849143,-706.0,0.00018883,2]
[395303866,1764601849152,-1079.0,0.00018883,2]
[395303867,1764601849162,-1682.0,0.00018883,2]
[395303868,1764601849172,-500.0,0.00018883,2]
[395303869,1764601849181,-500.0,0.00018904,2]
[395303870,1764601849191,-263.28,0.00018952,2]
[395303871,1764601849200,-2318.14006988,0.0001896,2]
[395303872,1764601849209,-300.0,0.00018999,2]
[395303873,1764601849218,-300.0,0.00018999,2]
[395303874,1764601849228,-300.0,0.00018999,2]
[395303875,1764601849237,-1101.0,0.00019,4]
[395303876,1764601849246,-184.21583964,0.00019,2]
[395303877,1764601849256,-25964.16861313,0.00019,2]
[395303878,1764601849265,-25964.16861313,0.00019,2]
[395303879,1764601849275,-300.0,0.00019,2]
[395303880,1764601849285,-923.76713922,0.00019,2]
[395303881,1764601849294,-7000.0,0.00019,2]
[395303882,1764601849304,-706.0,0.0001902,2]
[395303883,1764601849313,-1079.0,0.0001902,2]
[395303884,1764601849322,-1682.0,0.0001902,2]
[395303885,1764601849331,-500.0,0.0001902,2]
[395303886,1764601849341,-500.0,0.00019041,2]
[395303887,1764601849352,-23141.92264258,0.00019064,2]
[395303888,1764601849361,-170.1,0.0001907,2]
[395303889,1764601849370,-2619.68910904,0.000191,2]
[395303890,1764601849380,-3034.775287,0.00019148,2]
[395303891,1764601849389,-1190.72,0.00019155,2]
[395303892,1764601849398,-1190.72,0.00019155,2]
[395303893,1764601849408,-1190.72,0.00019155,2]
[395303894,1764601849418,-1190.72,0.00019155,2]
[395303895,1764601849428,-1190.87522195,0.00019155,2]
[395303896,1764601849437,-706.0,0.00019157,2]
[395303897,1764601849447,-1079.0,0.00019157,2]
[395303898,1764601849457,-1682.0,0.00019157,2]
[395303899,1764601849467,-500.0,0.00019157,2]
[395303900,1764601849477,-300.0,0.00019165,2]
[395303901,1764601849486,-16368.116003,0.00019166,2]
[395303902,1764601849496,-1253.4991348,0.00019166,2]
[395303903,1764601849506,-953.8208237,0.00019166,2]
[395303904,1764601849515,-500.0,0.00019178,2]
[395303905,1764601849525,-151.0,0.00019178,2]
[395303906,1764601849535,-1000.0,0.00019199,2]
[395303907,1764601849545,-1389.1590625,0.0001926,2]
[395303908,1764601849555,-1000.0,0.00019279,2]
[395303909,1764601849566,-706.0,0.00019294,2]
[395303910,1764601849576,-1079.0,0.00019294,2]
[395303911,1764601849585,-1682.0,0.00019294,2]
[395303912,1764601849595,-500.0,0.00019315,2]
[395303913,1764601849605,-1000.0,0.00019371,2]
[395303914,1764601849614,-640.24385345,0.00019373,2]
[395303915,1764601849624,-1000.0,0.00019397,2]
[395303916,1764601849634,-999.46074504,0.00019399,2]
[395303917,1764601849643,-20079.84080905,0.00019418,2]
[395303918,1764601849653,-1000.0,0.00019428,2]
[395303919,1764601849663,-706.0,0.00019431,2]
[395303920,1764601849674,-1079.0,0.00019431,2]
[395303921,1764601849684,-1682.0,0.00019431,2]
[395303922,1764601849694,-1000.0,0.00019438,2]
[395303923,1764601849703,-1000.0,0.0001944,2]
[395303924,1764601849713,-1000.0,0.00019444,2]
[395303925,1764601849724,-236.61851495,0.00019452,2]
[395303926,1764601849733,-1185.89,0.00019464,2]
[395303927,1764601849744,-909.0,0.00019498,2]
[395303928,1764601849754,-1194.0,0.00019498,2]
[395303929,1764601849763,-562.0,0.00019498,2]
[395303930,1764601849773,-4704.0,0.00019498,2]
[395303931,1764601849784,-250.0,0.0001953,2]
[395303932,1764601849794,-300.0,0.00019553,2]
[395303933,1764601849804,-300.0,0.00019553,2]
[395303934,1764601849818,-150.0,0.00019554,2]
[395303935,1764601849827,-150.0,0.00019554,2]
[395303936,1764601850163,-150.0,0.00019554,2]
[395303937,1764601850174,-150.0,0.00019554,2]
[395303938,1764601850185,-150.0,0.00019554,2]
[395303939,1764601850194,-150.0,0.00019554,2]
[395303940,1764601850204,-150.0,0.00019554,2]
[395303941,1764601850213,-150.0,0.00019554,2]
[395303942,1764601850223,-150.0,0.00019554,2]
[395303943,1764601850233,-150.0,0.00019554,2]
[395303944,1764601850242,-150.0,0.00019554,2]
[395303945,1764601850252,-1322.0,0.00019554,2]
[395303946,1764601850262,-610.0,0.00019554,2]
[395303947,1764601850271,-3442.0,0.00019554,2]
[395303948,1764601850281,-1258.0,0.00019554,2]
[395303949,1764601850291,-613.0,0.00019554,2]
[395303950,1764601850301,-706.0,0.00019568,2]
[395303951,1764601850311,-1079.0,0.00019568,2]
[395303952,1764601850320,-1682.0,0.00019568,2]
[395303953,1764601850330,-1000.0,0.00019594,2]
[395303954,1764601850340,-677.1498958,0.00019629,2]
[395303955,1764601850350,-3652.220345,0.0001965,2]
[395303956,1764601850360,-279.6934626,0.0001965,2]
[395303957,1764601850369,-212.8261931,0.0001965,2]
[395303958,1764601850380,-1000.0,0.00019656,2]
[395303959,1764601850390,-706.0,0.00019705,2]
[395303960,1764601850400,-1079.0,0.00019705,2]
[395303961,1764601850410,-1682.0,0.00019705,2]
[395303962,1764601850421,-156.587,0.00019726,2]
[395303963,1764601850431,-263.28,0.00019742,2]
[395303964,1764601850441,-309.963284,0.00019764,2]
[395303965,1764601850451,-23141.92264258,0.00019773,2]
[395303966,1764601850461,-300.0,0.00019799,2]
[395303967,1764601850471,-330.91140082,0.00019799,2]
[395303968,1764601850480,-1250.0,0.000198,2]
[395303969,1764601850490,-151.0,0.000198,2]
[395303970,1764601850500,-1250.0,0.000198,2]
[395303971,1764601850510,-151.0,0.000198,2]
[395303972,1764601850520,-1250.0,0.000198,2]
[395303973,1764601850529,-151.0,0.000198,2]
[395303974,1764601850539,-1250.0,0.000198,2]
[395303975,1764601850548,-151.0,0.000198,2]
[395303976,1764601850558,-832.0,0.000198,2]
[395303977,1764601850568,-151.0,0.000198,2]
[395303978,1764601850578,-151.0,0.000198,2]
[395303979,1764601850592,-832.0,0.000198,2]
[395303980,1764601850606,-202.71317792,0.000198,2]
[395303981,1764601850621,-832.0,0.000198,2]
[395303982,1764601850633,-1250.0,0.000198,2]
[395303983,1764601850643,-1250.0,0.000198,2]
[395303984,1764601850654,-153.0,0.000198,2]
[395303985,1764601850665,-153.0,0.000198,2]
[395303986,1764601850677,-1250.0,0.000198,2]
[395303987,1764601850687,-1250.0,0.000198,2]
[395303988,1764601850697,-1250.0,0.000198,2]
[395303989,1764601850707,-1250.0,0.000198,2]
[395303990,1764601850718,-1250.0,0.000198,2]
[395303991,1764601850728,-1250.0,0.000198,2]
[395303992,1764601850738,-1250.0,0.000198,2]
[395303993,1764601850747,-1000.0,0.00019826,2]
[395303994,1764601850757,-706.0,0.00019842,2]
[395303995,1764601850767,-1079.0,0.00019842,2]
[395303996,1764601850777,-1682.0,0.00019842,2]
[395303997,1764601850787,-1000.0,0.00019896,2]
[395303998,1764601850797,-573.91764515,0.000199,2]
[395303999,1764601850811,-663.93287602,0.00019921,2]
[395304000,1764601850821,-1000.0,0.00019948,2]
[395304001,1764601850830,-1000.0,0.00019961,2]
[395304002,1764601850840,-20079.84080905,0.00019975,2]
[395304003,1764601850850,-706.0,0.00019979,2]
[395304004,1764601850861,-1079.0,0.00019979,2]
[395304005,1764601850870,-1682.0,0.00019979,2]
[395304006,1764601850880,-1000.0,0.00019985,2]
[395304007,1764601850891,-1524.64258046,0.0002,2]
[395304008,1764601850901,-2403.93041885,0.0002,2]
[395304009,1764601850910,-434.295,0.0002,2]
[395304010,1764601850920,-163.33906337,0.0002,2]
[395304011,1764601850930,-16694.93570747,0.0002,5]
[395304012,1764601850940,-516.43,0.0002,2]
[395304013,1764601850949,-500.0,0.0002,2]
[395304014,1764601850960,-500.0,0.0002,2]
[395304015,1764601850969,-500.0,0.0002,2]
[395304016,1764601850979,-2666.08135373,0.0002,2]
[395304017,1764601850989,-5000.0,0.0002,2]
[395304018,1764601850999,-396.0,0.0002,2]
[395304019,1764601851008,-185.65,0.0002,2]
[395304020,1764601851018,-800.0,0.00020015,2]
[395304021,1764601851027,-151.0,0.00020051,2]
[395304022,1764601851037,-151.0,0.00020051,2]
[395304023,1764601851047,-832.30228,0.00020051,2]
[395304024,1764601851056,-832.30228,0.00020051,2]
[395304025,1764601851066,-832.30228,0.00020051,2]
[395304026,1764601851075,-832.30228,0.00020051,2]
[395304027,1764601851084,-151.0,0.00020051,2]
[395304028,1764601851094,-151.0,0.00020051,2]
[395304029,1764601851103,-564.600561,0.00020051,2]
[395304030,1764601851113,-2834.055173,0.00020051,2]
[395304031,1764601851122,-564.600561,0.00020051,2]
[395304032,1764601851133,-2834.055173,0.00020051,2]
[395304033,1764601851142,-564.600561,0.00020051,2]
[395304034,1764601851152,-564.600561,0.00020051,2]
[395304035,1764601851161,-2834.055173,0.00020051,2]
[395304036,1764601851171,-2834.055173,0.00020051,2]
[395304037,1764601851180,-151.0,0.00020051,2]
[395304038,1764601851190,-651.399818,0.00020051,2]
[395304039,1764601851200,-151.0,0.00020051,2]
[395304040,1764601851210,-651.399818,0.00020051,2]
[395304041,1764601851219,-151.0,0.00020051,2]
[395304042,1764601851229,-651.399818,0.00020051,2]
[395304043,1764601851239,-2805.437929,0.00020051,2]
[395304044,1764601851248,-651.399818,0.00020051,2]
[395304045,1764601851258,-2805.437929,0.00020051,2]
[395304046,1764601851267,-151.0,0.00020051,2]
[395304047,1764601851277,-2805.437929,0.00020051,2]
[395304048,1764601851287,-151.0,0.00020051,2]
[395304049,1764601851296,-151.0,0.00020051,2]
[395304050,1764601851306,-2805.437929,0.00020051,2]
[395304051,1764601851315,-526.510541,0.00020051,2]
[395304052,1764601851326,-151.0,0.00020051,2]
[395304053,1764601851336,-526.510541,0.00020051,2]
[395304054,1764601851345,-151.0,0.00020051,2]
[395304055,1764601851355,-526.510541,0.00020051,2]
[395304056,1764601851365,-526.510541,0.00020051,2]
[395304057,1764601851374,-410.254956,0.00020051,2]
[395304058,1764601851384,-410.254956,0.00020051,2]
[395304059,1764601851393,-2611.737863,0.00020051,2]
[395304060,1764601851403,-410.254956,0.00020051,2]
[395304061,1764601851412,-2611.737863,0.00020051,2]
[395304062,1764601851422,-410.254956,0.00020051,2]
[395304063,1764601851431,-2611.737863,0.00020051,2]
[395304064,1764601851441,-2611.737863,0.00020051,2]
[395304065,1764601851451,-1800.0,0.00020051,2]
[395304066,1764601851460,-729.0,0.00020116,2]
[395304067,1764601851470,-1097.74031308,0.00020116,2]
[395304068,1764601851480,-1686.55883161,0.00020116,2]
[395304069,1764601851490,-301.65,0.00020116,2]
[395304070,1764601851499,-1000.0,0.00020116,2]
[395304071,1764601851508,-170.1,0.00020137,2]
[395304072,1764601851518,-1000.0,0.00020139,2]
[395304073,1764601851527,-933.78,0.00020187,2]
[395304074,1764601851537,-277.35679052,0.00020192,2]
[395304075,1764601851547,-151.0,0.00020192,2]
[395304076,1764601851557,-334.5472959,0.00020192,2]
[395304077,1764601851567,-151.0,0.00020192,2]
[395304078,1764601851578,-1000.0,0.00020212,2]
[395304079,1764601851590,-3000.0,0.00020248,4]
[395304080,1764601851602,-1000.0,0.00020259,2]
[395304081,1764601851611,-162.380719,0.00020274,2]
[395304082,1764601851621,-1800.0,0.00020278,2]
[395304083,1764601851630,-1000.0,0.00020342,2]
[395304084,1764601851639,-1800.0,0.00020342,2]
[395304085,1764601851649,-500.0,0.00020389,2]
[395304086,1764601851658,-1000.0,0.00020441,2]
[395304087,1764601851667,-1000.0,0.00020447,2]
[395304088,1764601851678,-1000.0,0.0002046,2]
[395304089,1764601851687,-688.49839244,0.00020469,2]
[395304090,1764601851698,-23141.92264258,0.00020482,2]
[395304091,1764601851707,-1030.611774,0.00020482,2]
[395304092,1764601851717,-1030.611774,0.00020482,2]
[395304093,1764601851726,-1030.611774,0.00020482,2]
[395304094,1764601851738,-492.566537,0.00020482,2]
[395304095,1764601851748,-1030.611774,0.00020482,2]
[395304096,1764601851758,-151.0,0.00020482,2]
[395304097,1764601851767,-151.0,0.00020482,2]
[395304098,1764601851776,-492.566537,0.00020482,2]
[395304099,1764601851785,-151.0,0.00020482,2]
[395304100,1764601851795,-285.913425,0.00020482,2]
[395304101,1764601851805,-492.566537,0.00020482,2]
[395304102,1764601851817,-284.505183,0.00020482,2]
[395304103,1764601851826,-151.0,0.00020482,2]
[395304104,1764601851835,-151.0,0.00020482,2]
[395304105,1764601851844,-284.505183,0.00020482,2]
[395304106,1764601851855,-492.566537,0.00020482,2]
[395304107,1764601851864,-151.0,0.00020482,2]
[395304108,1764601851873,-314.716829,0.00020482,2]
[395304109,1764601851883,-284.505183,0.00020482,2]
[395304110,1764601851893,-151.0,0.00020482,2]
[395304111,1764601851902,-284.505183,0.00020482,2]
[395304112,1764601851911,-314.716829,0.00020482,2]
[395304113,1764601851921,-314.716829,0.00020482,2]
[395304114,1764601851930,-314.716829,0.00020482,2]
[395304115,1764601851939,-151.0,0.00020482,2]
[395304116,1764601851948,-151.0,0.00020482,2]
[395304117,1764601851957,-1036.993089,0.00020482,2]
[395304118,1764601851966,-1036.993089,0.00020482,2]
[395304119,1764601851976,-291.451868,0.00020482,2]
[395304120,1764601851985,-151.0,0.00020482,2]
[395304121,1764601851994,-291.451868,0.00020482,2]
[395304122,1764601852003,-1036.993089,0.00020482,2]
[395304123,1764601852013,-166.030149,0.00020482,2]
[395304124,1764601852022,-291.451868,0.00020482,2]
[395304125,1764601852031,-1036.993089,0.00020482,2]
[395304126,1764601852041,-291.451868,0.00020482,2]
[395304127,1764601852050,-151.0,0.00020482,2]
[395304128,1764601852059,-151.882126,0.00020482,2]
[395304129,1764601852068,-151.0,0.00020482,2]
[395304130,1764601852077,-257.117636,0.00020482,2]
[395304131,1764601852087,-257.117636,0.00020482,2]
[395304132,1764601852096,-257.117636,0.00020482,2]
[395304133,1764601852105,-257.117636,0.00020482,2]
[395304134,1764601852114,-414.786507,0.00020482,2]
[395304135,1764601852123,-414.786507,0.00020482,2]
[395304136,1764601852133,-414.786507,0.00020482,2]
[395304137,1764601852143,-414.786507,0.00020482,2]
[395304138,1764601852153,-221.94862,0.00020482,2]
[395304139,1764601852162,-221.94862,0.00020482,2]
[395304140,1764601852172,-221.94862,0.00020482,2]
[395304141,1764601852181,-221.94862,0.00020482,2]
[395304142,1764601852190,-151.0,0.00020482,2]
[395304143,1764601852199,-1000.0,0.00020485,2]
[395304144,1764601852208,-263.28,0.00020532,2]
[395304145,1764601852217,-20079.84080905,0.00020532,2]
[395304146,1764601852227,-190.95,0.00020548,2]
[395304147,1764601852236,-1000.0,0.00020548,2]
[395304148,1764601852245,-1000.0,0.00020548,2]
[395304149,1764601852255,-500.0,0.0002056,2]
[395304150,1764601852265,-1000.0,0.00020626,2]
[395304151,1764601852274,-1800.0,0.00020626,2]
[395304152,1764601852284,-1000.0,0.00020632,2]
[395304153,1764601852294,-176.06,0.00020639,2]
[395304154,1764601852303,-1000.0,0.0002069,2]
[395304155,1764601852313,-2000.0,0.000207,2]
[395304156,1764601852323,-2000.0,0.000207,2]
[395304157,1764601852332,-1000.0,0.00020704,2]
[395304158,1764601852341,-1000.0,0.00020721,2]
[395304159,1764601852351,-1000.0,0.00020751,2]
[395304160,1764601852361,-800.0,0.00020773,2]
[395304161,1764601852370,-1000.0,0.00020795,2]
[395304162,1764601852380,-168.3888056,0.00020822,2]
[395304163,1764601852389,-1000.0,0.00020927,2]
[395304164,1764601852399,-1000.0,0.00020979,2]
[395304165,1764601852408,-1000.0,0.00020987,2]
[395304166,1764601852417,-350.0,0.00021,2]
[395304167,1764601852427,-7000.0,0.00021,2]
[395304168,1764601852437,-713.97283296,0.00021017,2]
[395304169,1764601852447,-500.0,0.00021023,2]
[395304170,1764601852456,-1000.0,0.00021029,2]
[395304171,1764601852465,-215.0738,0.00021041,2]
[395304172,1764601852475,-1000.0,0.00021043,2]
[395304173,1764601852484,-1000.0,0.00021132,2]
[395304174,1764601852494,-1000.0,0.00021152,2]
[395304175,1764601852503,-1000.0,0.00021161,2]
[395304176,1764601852513,-23141.92264258,0.00021191,2]
[395304177,1764601852522,-1000.0,0.00021217,2]
[395304178,1764601852532,-213.747881,0.00021217,2]
[395304179,1764601852541,-213.747881,0.00021217,2]
[395304180,1764601852550,-213.747881,0.00021217,2]
[395304181,1764601852560,-213.747881,0.00021217,2]
[395304182,1764601852569,-1312.482975,0.00021217,2]
[395304183,1764601852579,-1312.482975,0.00021217,2]
[395304184,1764601852588,-1312.482975,0.00021217,2]
[395304185,1764601852597,-1312.482975,0.00021217,2]
[395304186,1764601852606,-497.4759,0.00021217,2]
[395304187,1764601852615,-707.537558,0.00021217,2]
[395304188,1764601852624,-497.4759,0.00021217,2]
[395304189,1764601852634,-707.537558,0.00021217,2]
[395304190,1764601852643,-151.0,0.00021217,2]
[395304191,1764601852652,-497.4759,0.00021217,2]
[395304192,1764601852662,-707.537558,0.00021217,2]
[395304193,1764601852672,-151.0,0.00021217,2]
[395304194,1764601852682,-497.4759,0.00021217,2]
[395304195,1764601852691,-707.537558,0.00021217,2]
[395304196,1764601852700,-151.0,0.00021217,2]
[395304197,1764601852710,-159.416973,0.00021217,2]
[395304198,1764601852719,-366.043751,0.00021217,2]
[395304199,1764601852729,-159.416973,0.00021217,2]
[395304200,1764601852738,-151.0,0.00021217,2]
[395304201,1764601852747,-366.043751,0.00021217,2]
[395304202,1764601852756,-159.416973,0.00021217,2]
[395304203,1764601852765,-151.0,0.00021217,2]
[395304204,1764601852775,-366.043751,0.00021217,2]
[395304205,1764601852785,-366.043751,0.00021217,2]
[395304206,1764601852794,-225.610251,0.00021217,2]
[395304207,1764601852806,-159.416973,0.00021217,2]
[395304208,1764601852819,-225.610251,0.00021217,2]
[395304209,1764601852828,-225.610251,0.00021217,2]
[395304210,1764601852838,-1375.39195,0.00021217,2]
[395304211,1764601852849,-225.610251,0.00021217,2]
[395304212,1764601852859,-1375.39195,0.00021217,2]
[395304213,1764601852868,-1375.39195,0.00021217,2]
[395304214,1764601852877,-1375.39195,0.00021217,2]
[395304215,1764601852887,-259.11682,0.00021217,2]
[395304216,1764601852897,-259.11682,0.00021217,2]
[395304217,1764601852906,-259.11682,0.00021217,2]
[395304218,1764601852916,-259.11682,0.00021217,2]
[395304219,1764601852927,-1000.0,0.00021227,2]
[395304220,1764601852939,-1185.89,0.00021233,2]
[395304221,1764601852949,-500.0,0.00021234,2]
[395304222,1764601852958,-1000.0,0.00021277,2]
[395304223,1764601852968,-1000.0,0.00021282,2]
[395304224,1764601852978,-1000.0,0.00021297,2]
[395304225,1764601852987,-2619.68910904,0.000213,2]
[395304226,1764601852997,-1000.0,0.00021319,2]
[395304227,1764601853007,-263.28,0.00021321,2]
[395304228,1764601853017,-174.61919141,0.0002137,2]
[395304229,1764601853027,-1000.0,0.00021419,2]
[395304230,1764601853038,-1000.0,0.00021421,2]
[395304231,1764601853048,-1000.0,0.00021435,2]
[395304232,1764601853059,-800.0,0.00021435,2]
[395304233,1764601853071,-1000.0,0.00021489,2]
[395304234,1764601853082,-1000.0,0.00021507,2]
[395304235,1764601853092,-287.61899177,0.00021561,2]
[395304236,1764601853104,-151.0,0.00021561,2]
[395304237,1764601853115,-346.92554585,0.00021561,2]
[395304238,1764601853125,-218.13661554,0.00021561,2]
[395304239,1764601853136,-621.78829552,0.00021563,2]
[395304240,1764601853146,-740.38982778,0.00021565,2]
[395304241,1764601853156,-1000.0,0.00021592,2]
[395304242,1764601853166,-1000.0,0.00021681,2]
[395304243,1764601853176,-800.0,0.00021763,2]
[395304244,1764601853186,-535.09011814,0.00021764,2]
[395304245,1764601853197,-1000.0,0.00021782,2]
[395304246,1764601853208,-1000.0,0.00021814,2]
[395304247,1764601853218,-385.885851,0.00021814,2]
[395304248,1764601853229,-385.885851,0.00021814,2]
[395304249,1764601853239,-385.885851,0.00021814,2]
[395304250,1764601853249,-385.885851,0.00021814,2]
[395304251,1764601853259,-151.0,0.00021814,2]
[395304252,1764601853270,-619.669301,0.00021814,2]
[395304253,1764601853280,-619.669301,0.00021814,2]
[395304254,1764601853290,-619.669301,0.00021814,2]
[395304255,1764601853300,-619.669301,0.00021814,2]
[395304256,1764601853311,-398.479476,0.00021814,2]
[395304257,1764601853321,-398.479476,0.00021814,2]
[395304258,1764601853332,-398.479476,0.00021814,2]
[395304259,1764601853342,-398.479476,0.00021814,2]
[395304260,1764601853353,-1000.0,0.00021869,2]
[395304261,1764601853362,-999.46074504,0.00021899,2]
[395304262,1764601853372,-23141.92264258,0.000219,2]
[395304263,1764601853383,-1000.0,0.00021901,2]
[395304264,1764601853393,-5000.0,0.00021918,2]
[395304265,1764601853403,-153.0,0.00021918,2]
[395304266,1764601853413,-296.653333,0.00021918,2]
[395304267,1764601853425,-153.0,0.00021918,2]
[395304268,1764601853436,-150.0,0.00021918,2]
[395304269,1764601853446,-181.08010149,0.00021918,2]
[395304270,1764601853459,-1000.0,0.00021945,2]
[395304271,1764601853469,-1000.0,0.00021982,2]
[395304272,1764601853480,-300.0,0.0002199,4]
[395304273,1764601853491,-151.0,0.00021997,2]
[395304274,1764601853502,-666.0,0.00021999,2]
[395304275,1764601853513,-666.0,0.00021999,2]
[395304276,1764601853523,-677.47847321,0.00021999,2]
[395304277,1764601853533,-500.92742179,0.00021999,2]
[395304278,1764601853544,-3263.85,0.00022,7]
[395304279,1764601853554,-555.47,0.00022,14]
[395304280,1764601853564,-500.0,0.00022,7]
[395304281,1764601853574,-500.0,0.00022,7]
[395304282,1764601853585,-500.0,0.00022,7]
[395304283,1764601853595,-500.0,0.00022,7]
[395304284,1764601853605,-500.0,0.00022,7]
[395304285,1764601853615,-500.0,0.00022,7]
[395304286,1764601853631,-500.0,0.00022,7]
[395304287,1764601853642,-500.0,0.00022,7]
[395304288,1764601853653,-500.0,0.00022,7]
[395304289,1764601853663,-500.0,0.00022,7]
[395304290,1764601853674,-500.0,0.00022,7]
[395304291,1764601853684,-500.0,0.00022,7]
[395304292,1764601853694,-500.0,0.00022,7]
[395304293,1764601853704,-500.0,0.00022,7]
[395304294,1764601853713,-500.0,0.00022,7]
[395304295,1764601853723,-500.0,0.00022,7]
[395304296,1764601853733,-500.0,0.00022,7]
[395304297,1764601853742,-500.0,0.00022,7]
[395304298,1764601853752,-500.0,0.00022,7]
[395304299,1764601853761,-500.0,0.00022,7]
[395304300,1764601853771,-500.0,0.00022,7]
[395304301,1764601853781,-500.0,0.00022,7]
[395304302,1764601853791,-500.0,0.00022,7]
[395304303,1764601853802,-500.0,0.00022,7]
[395304304,1764601853817,-500.0,0.00022,7]
[395304305,1764601853827,-500.0,0.00022,7]
[395304306,1764601853837,-500.0,0.00022,7]
[395304307,1764601853849,-500.0,0.00022,7]
[395304308,1764601853860,-500.0,0.00022,7]
[395304309,1764601853869,-500.0,0.00022,7]
[395304310,1764601853879,-500.0,0.00022,7]
[395304311,1764601853891,-500.0,0.00022,7]
[395304312,1764601853901,-500.0,0.00022,7]
[395304313,1764601853911,-500.0,0.00022,7]
[395304314,1764601853923,-500.0,0.00022,7]
[395304315,1764601853933,-500.0,0.00022,7]
[395304316,1764601853944,-500.0,0.00022,7]
[395304317,1764601853953,-500.0,0.00022,7]
[395304318,1764601853963,-500.0,0.00022,7]
[395304319,1764601853973,-500.0,0.00022,7]
[395304320,1764601853983,-500.0,0.00022,7]
[395304321,1764601853993,-500.0,0.00022,7]
[395304322,1764601854003,-500.0,0.00022,7]
[395304323,1764601854014,-500.0,0.00022,7]
[395304324,1764601854023,-500.0,0.00022,7]
[395304325,1764601854033,-500.0,0.00022,7]
[395304326,1764601854043,-500.0,0.00022,7]
[395304327,1764601854054,-500.0,0.00022,7]
[395304328,1764601854064,-500.0,0.00022,7]
[395304329,1764601854074,-500.0,0.00022,7]
[395304330,1764601854083,-500.0,0.00022,7]
[395304331,1764601854094,-500.0,0.00022,7]
[395304332,1764601854103,-500.0,0.00022,7]
[395304333,1764601854114,-500.0,0.00022,7]
[395304334,1764601854124,-500.0,0.00022,7]
[395304335,1764601854133,-500.0,0.00022,7]
[395304336,1764601854143,-500.0,0.00022,7]
[395304337,1764601854154,-500.0,0.00022,7]
[395304338,1764601854164,-500.0,0.00022,7]
[395304339,1764601854175,-500.0,0.00022,7]
[395304340,1764601854186,-500.0,0.00022,7]
[395304341,1764601854195,-500.0,0.00022,7]
[395304342,1764601854205,-500.0,0.00022,7]
[395304343,1764601854215,-500.0,0.00022,7]
[395304344,1764601854225,-500.0,0.00022,7]
[395304345,1764601854235,-500.0,0.00022,7]
[395304346,1764601854245,-500.0,0.00022,7]
[395304347,1764601854254,-500.0,0.00022,7]
[395304348,1764601854264,-170.59,0.00022,7]
[395304349,1764601854274,-151.0,0.00022,2]
[395304350,1764601854566,-151.0,0.00022,2]
[395304351,1764601854576,-151.0,0.00022,2]
[395304352,1764601854586,-500.0,0.00022,7]
[395304353,1764601854596,-500.0,0.00022,7]
[395304354,1764601854606,-500.0,0.00022,7]
[395304355,1764601854615,-500.0,0.00022,7]
[395304356,1764601854625,-631.07,0.00022,7]
[395304357,1764601854634,-500.0,0.00022,7]
[395304358,1764601854645,-500.0,0.00022,7]
[395304359,1764601854654,-500.0,0.00022,7]
[395304360,1764601854663,-500.0,0.00022,7]
[395304361,1764601854673,-151.0,0.00022,2]
[395304362,1764601854683,-151.0,0.00022,2]
[395304363,1764601854692,-1250.0,0.00022,2]
[395304364,1764601854702,-1250.0,0.00022,2]